[Event "January 2 Early 2024"]
[Site "https://www.chess.com"]
[Date "2024.01.02"]
[Round "1"]
[White "Bodnar, Nikolay"]
[Black "Caruana, Fabiano"]
[Result "0-1"]
[Board "14"]
[TimeControl "180+1"]
[WhiteFideId "14106469"]
[BlackFideId "2020009"]
[WhiteElo "2524"]
[BlackElo "3044"]
[WhiteTeam "UKR"]
[BlackTeam "USA"]
[WhiteClock "0:00:00"]
[BlackClock "0:01:11"]

1. e4 {[%clk 0:03:00]}  c6 {[%clk 0:02:58]} 2. d4 {[%clk 0:02:59]}  d5 {[%clk 0:02:59]} 3. exd5 {[%clk 0:03:00]}  cxd5 {[%clk 0:02:58]} 4. Bd3 {[%clk 0:03:00]}  Nc6 {[%clk 0:02:58]} 5. c3 {[%clk 0:03:00]}  Nf6 {[%clk 0:02:58]} 6. Nf3 {[%clk 0:02:59]}  Bg4 {[%clk 0:02:56]} 7. h3 {[%clk 0:02:59]}  Bh5 {[%clk 0:02:55]} 8. O-O {[%clk 0:02:59]}  e6 {[%clk 0:02:55]} 9. Re1 {[%clk 0:02:59]}  Bd6 {[%clk 0:02:55]} 10. Nbd2 {[%clk 0:02:55]}  O-O {[%clk 0:02:53]} 11. Nf1 {[%clk 0:02:54]}  Qc7 {[%clk 0:02:49]} 12. Bg5 {[%clk 0:02:52]}  Nd7 {[%clk 0:02:44]} 13. Bh4 {[%clk 0:02:52]}  e5 {[%clk 0:02:31]} 14. dxe5 {[%clk 0:02:40]}  Ndxe5 {[%clk 0:02:31]} 15. Bxh7+ {[%clk 0:02:29]}  Kxh7 {[%clk 0:02:29]} 16. Ng5+ {[%clk 0:02:29]}  Kh6 {[%clk 0:02:05]} 17. Qd2 {[%clk 0:02:08]}  Nc4 {[%clk 0:02:03]} 18. Qxd5 {[%clk 0:01:36]}  Ne7 {[%clk 0:02:01]} 19. Qd3 {[%clk 0:00:56]}  Bg6 {[%clk 0:01:48]} 20. Qf3 {[%clk 0:00:50]}  Nf5 {[%clk 0:01:46]} 21. Qg4 {[%clk 0:00:46]}  Ne5 {[%clk 0:01:37]} 22. Rxe5 {[%clk 0:00:32]}  Bxe5 {[%clk 0:01:38]} 23. Nf3 {[%clk 0:00:17]}  Bf6 {[%clk 0:01:30]} 24. Bg5+ {[%clk 0:00:14]}  Kh7 {[%clk 0:01:25]} 25. Bxf6 {[%clk 0:00:15]}  gxf6 {[%clk 0:01:26]} 26. h4 {[%clk 0:00:14]}  Nh6 {[%clk 0:01:23]} 27. Qh3 {[%clk 0:00:10]}  Bf5 {[%clk 0:01:21]} 28. Qh1 {[%clk 0:00:06]}  Rg8 {[%clk 0:01:21]} 29. Ne3 {[%clk 0:00:04]}  Be4 {[%clk 0:01:21]} 30. Nd4 {[%clk 0:00:03]}  Rae8 {[%clk 0:01:16]} 31. Qh3 {[%clk 0:00:03]}  Qf4 {[%clk 0:01:12]} 32. Re1 {[%clk 0:00:00]}  Bxg2 {[%clk 0:01:11]} 0-1

[Event "January 2 Early 2024"]
[Site "https://www.chess.com"]
[Date "2024.01.02"]
[Round "1"]
[White "Iturrizaga Bonelli, Eduardo"]
[Black "RaugintaBulba"]
[Result "0-1"]
[Board "15"]
[TimeControl "180+1"]
[WhiteFideId "3901211"]
[WhiteElo "3044"]
[BlackElo "2524"]
[WhiteTeam "ESP"]
[WhiteClock "0:00:17"]
[BlackClock "0:00:39"]

1. c4 {[%clk 0:03:00]}  Nf6 {[%clk 0:02:51]} 2. g3 {[%clk 0:03:01]}  c5 {[%clk 0:02:51]} 3. Bg2 {[%clk 0:03:01]}  d5 {[%clk 0:02:50]} 4. cxd5 {[%clk 0:03:00]}  Nxd5 {[%clk 0:02:51]} 5. Nc3 {[%clk 0:03:01]}  Nc7 {[%clk 0:02:50]} 6. d3 {[%clk 0:03:00]}  Nc6 {[%clk 0:02:51]} 7. Be3 {[%clk 0:02:57]}  e5 {[%clk 0:02:49]} 8. Bxc6+ {[%clk 0:02:56]}  bxc6 {[%clk 0:02:49]} 9. Nf3 {[%clk 0:02:57]}  f6 {[%clk 0:02:48]} 10. Rc1 {[%clk 0:02:55]}  Be7 {[%clk 0:02:45]} 11. Ne4 {[%clk 0:02:41]}  Ne6 {[%clk 0:02:31]} 12. O-O {[%clk 0:02:37]}  Qb6 {[%clk 0:02:27]} 13. b3 {[%clk 0:02:35]}  Nd4 {[%clk 0:02:22]} 14. Nfd2 {[%clk 0:02:31]}  Bh3 {[%clk 0:02:20]} 15. Re1 {[%clk 0:02:30]}  O-O {[%clk 0:02:12]} 16. Nc4 {[%clk 0:02:28]}  Qa6 {[%clk 0:02:07]} 17. Qd2 {[%clk 0:02:25]}  Rad8 {[%clk 0:01:54]} 18. Qa5 {[%clk 0:02:19]}  Qc8 {[%clk 0:01:39]} 19. Qxa7 {[%clk 0:02:10]}  Qe6 {[%clk 0:01:09]} 20. f3 {[%clk 0:01:50]}  Ra8 {[%clk 0:00:59]} 21. Qb6 {[%clk 0:01:30]}  Rfb8 {[%clk 0:00:57]} 22. Nxc5 {[%clk 0:01:30]}  Qd5 {[%clk 0:00:50]} 23. Nb7 {[%clk 0:01:20]}  Bd8 {[%clk 0:00:47]} 24. Qb4 {[%clk 0:00:49]}  Ra7 {[%clk 0:00:47]} 25. Ncd6 {[%clk 0:00:30]}  Ba5 {[%clk 0:00:44]} 26. Qc5 {[%clk 0:00:21]}  Bxe1 {[%clk 0:00:44]} 27. Qxa7 {[%clk 0:00:18]}  Nxe2+ {[%clk 0:00:38]} 28. Kh1 {[%clk 0:00:17]}  Qxf3# {[%clk 0:00:39]} 0-1

[Event "January 2 Early 2024"]
[Site "https://www.chess.com"]
[Date "2024.01.02"]
[Round "1"]
[White "xakevicius91"]
[Black "Makarian, Rudik"]
[Result "0-1"]
[Board "16"]
[TimeControl "180+1"]
[BlackFideId "44105681"]
[WhiteElo "2523"]
[BlackElo "3040"]
[BlackTeam "FID"]
[WhiteClock "0:00:28"]
[BlackClock "0:00:29"]

1. e4 {[%clk 0:03:00]}  c5 {[%clk 0:03:00]} 2. Nf3 {[%clk 0:03:00]}  d6 {[%clk 0:03:01]} 3. Bb5+ {[%clk 0:02:58]}  Nd7 {[%clk 0:03:00]} 4. a4 {[%clk 0:02:55]}  a6 {[%clk 0:03:00]} 5. Be2 {[%clk 0:02:55]}  Ngf6 {[%clk 0:03:00]} 6. Nc3 {[%clk 0:02:55]}  e5 {[%clk 0:02:48]} 7. O-O {[%clk 0:02:54]}  b6 {[%clk 0:02:49]} 8. d3 {[%clk 0:02:43]}  Be7 {[%clk 0:02:48]} 9. Ne1 {[%clk 0:02:40]}  O-O {[%clk 0:02:43]} 10. f4 {[%clk 0:02:40]}  Bb7 {[%clk 0:02:41]} 11. Nf3 {[%clk 0:02:31]}  exf4 {[%clk 0:02:28]} 12. Bxf4 {[%clk 0:02:29]}  Ng4 {[%clk 0:02:29]} 13. h3 {[%clk 0:02:25]}  Nge5 {[%clk 0:02:28]} 14. Qe1 {[%clk 0:02:19]}  Nxf3+ {[%clk 0:02:26]} 15. Bxf3 {[%clk 0:02:20]}  Ne5 {[%clk 0:02:22]} 16. Bxe5 {[%clk 0:02:10]}  dxe5 {[%clk 0:02:21]} 17. Nd5 {[%clk 0:02:11]}  Bxd5 {[%clk 0:02:19]} 18. exd5 {[%clk 0:02:12]}  Bd6 {[%clk 0:02:20]} 19. Be4 {[%clk 0:02:11]}  g6 {[%clk 0:02:20]} 20. g4 {[%clk 0:02:12]}  Qg5 {[%clk 0:02:15]} 21. Kh2 {[%clk 0:02:01]}  Kg7 {[%clk 0:02:00]} 22. Qg3 {[%clk 0:01:55]}  h5 {[%clk 0:01:54]} 23. Kg2 {[%clk 0:01:42]}  h4 {[%clk 0:01:32]} 24. Qe1 {[%clk 0:01:26]}  f5 {[%clk 0:01:32]} 25. Bf3 {[%clk 0:01:24]}  e4 {[%clk 0:01:25]} 26. Qc3+ {[%clk 0:01:08]}  Kh7 {[%clk 0:01:20]} 27. Be2 {[%clk 0:00:56]}  Qe3 {[%clk 0:01:18]} 28. Qe1 {[%clk 0:00:55]}  Bg3 {[%clk 0:01:16]} 29. Qd1 {[%clk 0:00:52]}  Rae8 {[%clk 0:00:53]} 30. Ra3 {[%clk 0:00:50]}  exd3 {[%clk 0:00:47]} 31. Bxd3 {[%clk 0:00:51]}  Bd6 {[%clk 0:00:39]} 32. Rf3 {[%clk 0:00:30]}  Qe5 {[%clk 0:00:39]} 33. gxf5 {[%clk 0:00:31]}  Qh2+ {[%clk 0:00:37]} 34. Kf1 {[%clk 0:00:31]}  Qh1+ {[%clk 0:00:35]} 35. Kf2 {[%clk 0:00:30]}  Bg3+ {[%clk 0:00:31]} 36. Rxg3 {[%clk 0:00:30]}  hxg3+ {[%clk 0:00:31]} 37. Kxg3 {[%clk 0:00:28]}  Qxd1 {[%clk 0:00:29]} 0-1

[Event "January 2 Early 2024"]
[Site "https://www.chess.com"]
[Date "2024.01.02"]
[Round "1"]
[White "Kabanov, Nikolai"]
[Black "Duda, Jan-Krzysztof"]
[Result "0-1"]
[Board "18"]
[TimeControl "180+1"]
[WhiteFideId "4127820"]
[BlackFideId "1170546"]
[WhiteElo "2521"]
[BlackElo "3033"]
[WhiteTeam "RUS"]
[BlackTeam "POL"]
[WhiteClock "0:00:00"]
[BlackClock "0:00:24"]

1. e4 {[%clk 0:02:58]}  c6 {[%clk 0:02:58]} 2. Nf3 {[%clk 0:02:58]}  d5 {[%clk 0:02:59]} 3. exd5 {[%clk 0:02:58]}  cxd5 {[%clk 0:03:00]} 4. d4 {[%clk 0:02:55]}  Nc6 {[%clk 0:02:58]} 5. Ne5 {[%clk 0:02:55]}  e6 {[%clk 0:02:51]} 6. c3 {[%clk 0:02:48]}  Bd6 {[%clk 0:02:50]} 7. f4 {[%clk 0:02:34]}  Nf6 {[%clk 0:02:23]} 8. Bd3 {[%clk 0:02:29]}  Ne4 {[%clk 0:02:22]} 9. O-O {[%clk 0:02:19]}  O-O {[%clk 0:02:20]} 10. Nd2 {[%clk 0:02:09]}  f5 {[%clk 0:02:19]} 11. Ndf3 {[%clk 0:02:01]}  Nxe5 {[%clk 0:02:15]} 12. Nxe5 {[%clk 0:01:58]}  b6 {[%clk 0:02:15]} 13. Qe2 {[%clk 0:01:48]}  a5 {[%clk 0:02:13]} 14. Kh1 {[%clk 0:01:45]}  Bb7 {[%clk 0:02:12]} 15. a4 {[%clk 0:01:41]}  Qc8 {[%clk 0:02:11]} 16. Be3 {[%clk 0:01:29]}  Ba6 {[%clk 0:02:07]} 17. Bb5 {[%clk 0:01:29]}  Bxe5 {[%clk 0:02:07]} 18. dxe5 {[%clk 0:01:27]}  Qb7 {[%clk 0:02:06]} 19. Rfd1 {[%clk 0:01:12]}  Rfc8 {[%clk 0:02:04]} 20. Rac1 {[%clk 0:01:02]}  h6 {[%clk 0:01:30]} 21. Kg1 {[%clk 0:00:46]}  Kh7 {[%clk 0:01:29]} 22. Qd3 {[%clk 0:00:45]}  Rc7 {[%clk 0:01:21]} 23. Qd4 {[%clk 0:00:43]}  Bxb5 {[%clk 0:01:20]} 24. axb5 {[%clk 0:00:44]}  Rc5 {[%clk 0:01:17]} 25. Qd3 {[%clk 0:00:42]}  Rc4 {[%clk 0:01:10]} 26. b3 {[%clk 0:00:40]}  Rc7 {[%clk 0:01:09]} 27. c4 {[%clk 0:00:39]}  dxc4 {[%clk 0:01:08]} 28. bxc4 {[%clk 0:00:29]}  Rac8 {[%clk 0:00:53]} 29. Qd4 {[%clk 0:00:27]}  Nc5 {[%clk 0:00:47]} 30. Qc3 {[%clk 0:00:17]}  a4 {[%clk 0:00:45]} 31. Bxc5 {[%clk 0:00:15]}  Rxc5 {[%clk 0:00:46]} 32. Qb4 {[%clk 0:00:14]}  Qe4 {[%clk 0:00:46]} 33. Qxa4 {[%clk 0:00:11]}  Qxf4 {[%clk 0:00:45]} 34. Re1 {[%clk 0:00:08]}  Rxe5 {[%clk 0:00:41]} 35. Qa6 {[%clk 0:00:07]}  Qd4+ {[%clk 0:00:40]} 36. Kh1 {[%clk 0:00:07]}  Rxc4 {[%clk 0:00:40]} 37. Rcd1 {[%clk 0:00:05]}  Rc2 {[%clk 0:00:35]} 38. Qb7 {[%clk 0:00:00]}  Rd2 {[%clk 0:00:24]} 0-1

[Event "January 2 Early 2024"]
[Site "https://www.chess.com"]
[Date "2024.01.02"]
[Round "1"]
[White "Kovacsy, Barnabas"]
[Black "Mamedyarov, Shakhriyar"]
[Result "0-1"]
[Board "20"]
[TimeControl "180+1"]
[WhiteFideId "769290"]
[BlackFideId "13401319"]
[WhiteElo "2517"]
[BlackElo "3032"]
[WhiteTeam "HUN"]
[BlackTeam "AZE"]
[WhiteClock "0:00:08"]
[BlackClock "0:02:14"]

1. e4 {[%clk 0:03:00]}  d5 {[%clk 0:02:59]} 2. exd5 {[%clk 0:03:00]}  Qxd5 {[%clk 0:03:00]} 3. Nc3 {[%clk 0:03:00]}  Qa5 {[%clk 0:03:00]} 4. Bc4 {[%clk 0:02:53]}  Nf6 {[%clk 0:03:00]} 5. d4 {[%clk 0:02:52]}  Bf5 {[%clk 0:03:00]} 6. Bd2 {[%clk 0:02:50]}  Qb6 {[%clk 0:02:58]} 7. Nf3 {[%clk 0:02:44]}  e6 {[%clk 0:02:57]} 8. Qe2 {[%clk 0:02:41]}  c6 {[%clk 0:02:47]} 9. O-O-O {[%clk 0:02:32]}  Nbd7 {[%clk 0:02:46]} 10. Bf4 {[%clk 0:02:20]}  Bb4 {[%clk 0:02:44]} 11. Ne5 {[%clk 0:01:44]}  Bxc3 {[%clk 0:02:39]} 12. bxc3 {[%clk 0:01:45]}  Qa5 {[%clk 0:02:39]} 13. Nxd7 {[%clk 0:01:39]}  Nxd7 {[%clk 0:02:34]} 14. Qe3 {[%clk 0:01:28]}  Nb6 {[%clk 0:02:26]} 15. Bb3 {[%clk 0:01:27]}  Nd5 {[%clk 0:02:25]} 16. Bxd5 {[%clk 0:01:22]}  cxd5 {[%clk 0:02:26]} 17. Kb2 {[%clk 0:00:46]}  Rc8 {[%clk 0:02:23]} 18. Rhe1 {[%clk 0:00:35]}  Rc6 {[%clk 0:02:21]} 19. Rb1 {[%clk 0:00:16]}  Ra6 {[%clk 0:02:15]} 20. a4 {[%clk 0:00:08]}  Qxa4 {[%clk 0:02:14]} 0-1

[Event "January 2 Early 2024"]
[Site "https://www.chess.com"]
[Date "2024.01.02"]
[Round "1"]
[White "Yashmetov, Mikhail"]
[Black "Sjugirov, Sanan"]
[Result "1-0"]
[Board "24"]
[TimeControl "180+1"]
[WhiteFideId "24198900"]
[BlackFideId "4189302"]
[WhiteElo "2515"]
[BlackElo "3027"]
[WhiteTeam "RUS"]
[BlackTeam "HUN"]
[WhiteClock "0:00:13"]
[BlackClock "0:00:00"]

1. d4 {[%clk 0:02:59]}  Nf6 {[%clk 0:02:59]} 2. Nf3 {[%clk 0:02:59]}  d5 {[%clk 0:02:59]} 3. g3 {[%clk 0:03:00]}  c6 {[%clk 0:02:58]} 4. Bg2 {[%clk 0:03:00]}  Bf5 {[%clk 0:02:58]} 5. O-O {[%clk 0:03:01]}  e6 {[%clk 0:02:58]} 6. c4 {[%clk 0:03:01]}  Nbd7 {[%clk 0:02:45]} 7. Qb3 {[%clk 0:03:01]}  Qb6 {[%clk 0:02:45]} 8. c5 {[%clk 0:03:01]}  Qxb3 {[%clk 0:02:45]} 9. axb3 {[%clk 0:03:02]}  a6 {[%clk 0:02:45]} 10. b4 {[%clk 0:03:01]}  h6 {[%clk 0:02:37]} 11. Nc3 {[%clk 0:03:00]}  Rc8 {[%clk 0:02:36]} 12. Bf4 {[%clk 0:02:53]}  Be7 {[%clk 0:02:31]} 13. Nd2 {[%clk 0:02:52]}  g5 {[%clk 0:02:29]} 14. Bd6 {[%clk 0:02:47]}  Bxd6 {[%clk 0:02:21]} 15. cxd6 {[%clk 0:02:48]}  Kd8 {[%clk 0:02:22]} 16. f3 {[%clk 0:02:46]}  Bg6 {[%clk 0:01:52]} 17. e4 {[%clk 0:02:45]}  dxe4 {[%clk 0:01:52]} 18. fxe4 {[%clk 0:02:46]}  e5 {[%clk 0:01:53]} 19. dxe5 {[%clk 0:02:36]}  Ng4 {[%clk 0:01:53]} 20. e6 {[%clk 0:02:17]}  fxe6 {[%clk 0:01:52]} 21. Bh3 {[%clk 0:02:13]}  Ne3 {[%clk 0:01:31]} 22. Rf3 {[%clk 0:02:07]}  Nc2 {[%clk 0:01:23]} 23. Rc1 {[%clk 0:02:00]}  Nd4 {[%clk 0:01:13]} 24. Rd3 {[%clk 0:01:59]}  e5 {[%clk 0:01:11]} 25. Nc4 {[%clk 0:01:43]}  Re8 {[%clk 0:01:03]} 26. Bxd7 {[%clk 0:01:31]}  Kxd7 {[%clk 0:01:04]} 27. Nxe5+ {[%clk 0:01:15]}  Rxe5 {[%clk 0:01:05]} 28. Rxd4 {[%clk 0:01:16]}  b5 {[%clk 0:00:46]} 29. Rf1 {[%clk 0:01:12]}  Re6 {[%clk 0:00:39]} 30. Ra1 {[%clk 0:01:06]}  Ra8 {[%clk 0:00:29]} 31. Rf1 {[%clk 0:01:03]}  a5 {[%clk 0:00:23]} 32. bxa5 {[%clk 0:00:46]}  Rxa5 {[%clk 0:00:24]} 33. b4 {[%clk 0:00:46]}  Ra3 {[%clk 0:00:23]} 34. Rf3 {[%clk 0:00:42]}  g4 {[%clk 0:00:10]} 35. Re3 {[%clk 0:00:40]}  Ra1+ {[%clk 0:00:08]} 36. Kg2 {[%clk 0:00:40]}  Rxd6 {[%clk 0:00:08]} 37. Rxd6+ {[%clk 0:00:32]}  Kxd6 {[%clk 0:00:09]} 38. e5+ {[%clk 0:00:33]}  Ke7 {[%clk 0:00:08]} 39. Ne2 {[%clk 0:00:34]}  Bf7 {[%clk 0:00:07]} 40. e6 {[%clk 0:00:31]}  Be8 {[%clk 0:00:05]} 41. Nd4 {[%clk 0:00:29]}  Kf6 {[%clk 0:00:04]} 42. Re4 {[%clk 0:00:26]}  Ra2+ {[%clk 0:00:03]} 43. Kg1 {[%clk 0:00:26]}  Ra4 {[%clk 0:00:03]} 44. Nb3 {[%clk 0:00:14]}  Bg6 {[%clk 0:00:01]} 45. Rf4+ {[%clk 0:00:14]}  Ke7 {[%clk 0:00:00]} 46. Rxg4 {[%clk 0:00:13]} 1-0

[Event "January 2 Early 2024"]
[Site "https://www.chess.com"]
[Date "2024.01.02"]
[Round "1"]
[White "Xiong, Jeffery"]
[Black "Goncalves, Davi Sulzbacher"]
[Result "1-0"]
[Board "25"]
[TimeControl "180+1"]
[WhiteFideId "2047640"]
[BlackFideId "2154510"]
[WhiteElo "3024"]
[BlackElo "2515"]
[WhiteTeam "USA"]
[BlackTeam "BRA"]
[WhiteClock "0:01:05"]
[BlackClock "0:00:02"]

1. e4 {[%clk 0:03:00]}  c5 {[%clk 0:02:59]} 2. Nf3 {[%clk 0:03:00]}  Nc6 {[%clk 0:02:59]} 3. Bb5 {[%clk 0:03:00]}  g6 {[%clk 0:02:58]} 4. O-O {[%clk 0:02:55]}  Bg7 {[%clk 0:02:58]} 5. Re1 {[%clk 0:02:55]}  Nf6 {[%clk 0:02:57]} 6. c3 {[%clk 0:02:53]}  O-O {[%clk 0:02:55]} 7. d4 {[%clk 0:02:53]}  cxd4 {[%clk 0:02:54]} 8. cxd4 {[%clk 0:02:53]}  d5 {[%clk 0:02:54]} 9. e5 {[%clk 0:02:54]}  Ne4 {[%clk 0:02:54]} 10. Bxc6 {[%clk 0:02:50]}  bxc6 {[%clk 0:02:53]} 11. Be3 {[%clk 0:02:41]}  Rb8 {[%clk 0:02:41]} 12. b3 {[%clk 0:02:40]}  Qa5 {[%clk 0:02:39]} 13. Nbd2 {[%clk 0:02:39]}  f5 {[%clk 0:02:15]} 14. exf6 {[%clk 0:02:34]}  exf6 {[%clk 0:02:14]} 15. Nxe4 {[%clk 0:02:32]}  dxe4 {[%clk 0:02:14]} 16. Nd2 {[%clk 0:02:33]}  f5 {[%clk 0:01:58]} 17. Nc4 {[%clk 0:02:33]}  Qd5 {[%clk 0:01:58]} 18. Bf4 {[%clk 0:02:32]}  Rb4 {[%clk 0:01:49]} 19. Be5 {[%clk 0:02:23]}  Rd8 {[%clk 0:01:29]} 20. Rc1 {[%clk 0:02:18]}  Be6 {[%clk 0:01:17]} 21. Qc2 {[%clk 0:02:13]}  Bh6 {[%clk 0:00:53]} 22. Ne3 {[%clk 0:02:10]}  Bxe3 {[%clk 0:00:35]} 23. fxe3 {[%clk 0:02:11]}  Bd7 {[%clk 0:00:35]} 24. Qb2 {[%clk 0:02:05]}  Rb5 {[%clk 0:00:34]} 25. Qa3 {[%clk 0:02:02]}  Re8 {[%clk 0:00:17]} 26. Qxa7 {[%clk 0:02:01]}  Ra5 {[%clk 0:00:17]} 27. Qc7 {[%clk 0:02:00]}  Rxa2 {[%clk 0:00:17]} 28. Rc5 {[%clk 0:02:00]}  Qf7 {[%clk 0:00:16]} 29. d5 {[%clk 0:01:33]}  cxd5 {[%clk 0:00:15]} 30. Bd4 {[%clk 0:01:33]}  Rd2 {[%clk 0:00:12]} 31. Rf1 {[%clk 0:01:19]}  Qe7 {[%clk 0:00:03]} 32. Qa5 {[%clk 0:01:06]}  Qg5 {[%clk 0:00:02]} 33. Qxd2 {[%clk 0:01:05]} 1-0

[Event "January 2 Early 2024"]
[Site "https://www.chess.com"]
[Date "2024.01.02"]
[Round "1"]
[White "Kopczynski, Michal"]
[Black "Narayanan S L"]
[Result "0-1"]
[Board "26"]
[TimeControl "180+1"]
[WhiteFideId "1124200"]
[BlackFideId "5058422"]
[WhiteElo "2514"]
[BlackElo "3023"]
[WhiteTeam "POL"]
[BlackTeam "IND"]
[WhiteClock "0:00:00"]
[BlackClock "0:01:25"]

1. e4 {[%clk 0:03:00]}  g6 {[%clk 0:03:00]} 2. d4 {[%clk 0:03:01]}  Nf6 {[%clk 0:03:00]} 3. Nc3 {[%clk 0:03:01]}  c6 {[%clk 0:02:58]} 4. Bg5 {[%clk 0:03:01]}  d6 {[%clk 0:02:58]} 5. Qd2 {[%clk 0:03:01]}  b5 {[%clk 0:02:57]} 6. f3 {[%clk 0:03:00]}  Nbd7 {[%clk 0:02:57]} 7. O-O-O {[%clk 0:03:00]}  b4 {[%clk 0:02:57]} 8. Nce2 {[%clk 0:02:54]}  Qa5 {[%clk 0:02:57]} 9. Kb1 {[%clk 0:02:53]}  Nb6 {[%clk 0:02:55]} 10. Nc1 {[%clk 0:02:50]}  Na4 {[%clk 0:02:55]} 11. Bc4 {[%clk 0:02:31]}  Nc3+ {[%clk 0:02:52]} 12. bxc3 {[%clk 0:02:24]}  bxc3 {[%clk 0:02:52]} 13. Qe3 {[%clk 0:02:21]}  Qa3 {[%clk 0:02:42]} 14. Nd3 {[%clk 0:02:19]}  Rb8+ {[%clk 0:02:39]} 15. Bb3 {[%clk 0:02:07]}  Be6 {[%clk 0:02:14]} 16. Bxf6 {[%clk 0:01:41]}  exf6 {[%clk 0:02:11]} 17. d5 {[%clk 0:01:40]}  c5 {[%clk 0:02:05]} 18. Qc1 {[%clk 0:01:15]}  Qa5 {[%clk 0:01:59]} 19. dxe6 {[%clk 0:01:08]}  c4 {[%clk 0:02:00]} 20. exf7+ {[%clk 0:01:04]}  Kxf7 {[%clk 0:02:01]} 21. Nf4 {[%clk 0:01:00]}  Bh6 {[%clk 0:01:52]} 22. Nge2 {[%clk 0:00:57]}  Rhc8 {[%clk 0:01:49]} 23. Rxd6 {[%clk 0:00:46]}  cxb3 {[%clk 0:01:48]} 24. cxb3 {[%clk 0:00:33]}  c2+ {[%clk 0:01:45]} 25. Ka1 {[%clk 0:00:24]}  Qe5+ {[%clk 0:01:42]} 26. Rd4 {[%clk 0:00:24]}  Bxf4 {[%clk 0:01:41]} 27. Qxf4 {[%clk 0:00:22]}  c1=Q+ {[%clk 0:01:41]} 28. Rxc1 {[%clk 0:00:19]}  Rxc1+ {[%clk 0:01:42]} 29. Qxc1 {[%clk 0:00:18]}  g5 {[%clk 0:01:35]} 30. Qc4+ {[%clk 0:00:19]}  Kg6 {[%clk 0:01:35]} 31. Kb1 {[%clk 0:00:19]}  Qxh2 {[%clk 0:01:33]} 32. Qe6 {[%clk 0:00:14]}  Rb7 {[%clk 0:01:29]} 33. Qf5+ {[%clk 0:00:12]}  Kg7 {[%clk 0:01:30]} 34. Rd7+ {[%clk 0:00:11]}  Rxd7 {[%clk 0:01:30]} 35. Qxd7+ {[%clk 0:00:12]}  Kh6 {[%clk 0:01:30]} 36. Qf5 {[%clk 0:00:12]}  Kg7 {[%clk 0:01:30]} 37. Nd4 {[%clk 0:00:12]}  Qg1+ {[%clk 0:01:28]} 38. Kc2 {[%clk 0:00:12]}  Qxd4 {[%clk 0:01:29]} 39. Qc8 {[%clk 0:00:11]}  h5 {[%clk 0:01:28]} 40. Qc7+ {[%clk 0:00:10]}  Kh6 {[%clk 0:01:27]} 41. Qc4 {[%clk 0:00:09]}  Qf2+ {[%clk 0:01:27]} 42. Kb1 {[%clk 0:00:09]}  Qxg2 {[%clk 0:01:28]} 43. Qd4 {[%clk 0:00:08]}  Qxf3 {[%clk 0:01:28]} 44. Qxa7 {[%clk 0:00:07]}  Qxe4+ {[%clk 0:01:28]} 45. Kb2 {[%clk 0:00:07]}  h4 {[%clk 0:01:29]} 46. Qf2 {[%clk 0:00:06]}  Qe5+ {[%clk 0:01:28]} 47. Kc2 {[%clk 0:00:05]}  h3 {[%clk 0:01:29]} 48. a4 {[%clk 0:00:04]}  h2 {[%clk 0:01:29]} 49. Qg2 {[%clk 0:00:03]}  g4 {[%clk 0:01:26]} 50. a5 {[%clk 0:00:02]}  g3 {[%clk 0:01:26]} 51. a6 {[%clk 0:00:02]}  Qf5+ {[%clk 0:01:25]} 52. Kb2 {[%clk 0:00:03]}  Qf2+ {[%clk 0:01:23]} 53. Qxf2 {[%clk 0:00:03]}  gxf2 {[%clk 0:01:24]} 54. a7 {[%clk 0:00:00]}  h1=Q {[%clk 0:01:25]} 0-1

[Event "January 2 Early 2024"]
[Site "https://www.chess.com"]
[Date "2024.01.02"]
[Round "1"]
[White "Svane, Frederik"]
[Black "Lehtosaari, Mauri"]
[Result "1-0"]
[Board "27"]
[TimeControl "180+1"]
[WhiteFideId "12923044"]
[BlackFideId "501999"]
[WhiteElo "3021"]
[BlackElo "2514"]
[WhiteTeam "GER"]
[BlackTeam "FIN"]
[WhiteClock "0:00:19"]
[BlackClock "0:00:00"]

1. e4 {[%clk 0:03:00]}  c6 {[%clk 0:02:46]} 2. Nf3 {[%clk 0:03:00]}  d5 {[%clk 0:02:47]} 3. exd5 {[%clk 0:03:01]}  cxd5 {[%clk 0:02:46]} 4. c3 {[%clk 0:03:01]}  Nf6 {[%clk 0:02:47]} 5. d4 {[%clk 0:03:02]}  Nc6 {[%clk 0:02:47]} 6. Ne5 {[%clk 0:03:02]}  e6 {[%clk 0:02:44]} 7. Nd2 {[%clk 0:03:00]}  Nxe5 {[%clk 0:02:40]} 8. dxe5 {[%clk 0:03:01]}  Nd7 {[%clk 0:02:41]} 9. Nf3 {[%clk 0:03:01]}  Bc5 {[%clk 0:02:40]} 10. Bd3 {[%clk 0:03:01]}  Qc7 {[%clk 0:02:37]} 11. Qe2 {[%clk 0:02:58]}  a6 {[%clk 0:02:31]} 12. O-O {[%clk 0:02:57]}  Nf8 {[%clk 0:02:31]} 13. Be3 {[%clk 0:02:54]}  Ng6 {[%clk 0:02:29]} 14. a4 {[%clk 0:02:45]}  O-O {[%clk 0:02:19]} 15. h4 {[%clk 0:02:40]}  Bxe3 {[%clk 0:02:16]} 16. Qxe3 {[%clk 0:02:41]}  Ne7 {[%clk 0:01:51]} 17. h5 {[%clk 0:02:40]}  h6 {[%clk 0:01:49]} 18. a5 {[%clk 0:02:40]}  Bd7 {[%clk 0:01:41]} 19. Rfe1 {[%clk 0:02:39]}  Rae8 {[%clk 0:01:40]} 20. Bc2 {[%clk 0:02:28]}  f5 {[%clk 0:01:39]} 21. exf6 {[%clk 0:02:27]}  Rxf6 {[%clk 0:01:38]} 22. Ne5 {[%clk 0:02:27]}  Nf5 {[%clk 0:01:29]} 23. Bxf5 {[%clk 0:01:58]}  Rxf5 {[%clk 0:01:27]} 24. g4 {[%clk 0:01:58]}  Rf6 {[%clk 0:01:23]} 25. f3 {[%clk 0:01:57]}  Ref8 {[%clk 0:01:18]} 26. Kg2 {[%clk 0:01:57]}  Be8 {[%clk 0:01:16]} 27. b4 {[%clk 0:01:54]}  Qd6 {[%clk 0:01:04]} 28. Rad1 {[%clk 0:01:52]}  Qc7 {[%clk 0:01:01]} 29. Rd4 {[%clk 0:01:42]}  Ba4 {[%clk 0:00:58]} 30. Qd2 {[%clk 0:01:06]}  Be8 {[%clk 0:00:51]} 31. Kg3 {[%clk 0:01:05]}  Rxf3+ {[%clk 0:00:48]} 32. Kg2 {[%clk 0:01:04]}  Rf2+ {[%clk 0:00:46]} 33. Qxf2 {[%clk 0:01:04]}  Rxf2+ {[%clk 0:00:47]} 34. Kxf2 {[%clk 0:01:05]}  Qxc3 {[%clk 0:00:47]} 35. Nf3 {[%clk 0:01:02]}  Bf7 {[%clk 0:00:41]} 36. Re3 {[%clk 0:01:03]}  Qc2+ {[%clk 0:00:40]} 37. Kg3 {[%clk 0:01:03]}  Qc1 {[%clk 0:00:39]} 38. Re1 {[%clk 0:01:01]}  Qc7+ {[%clk 0:00:37]} 39. Rf4 {[%clk 0:01:00]}  Qc3 {[%clk 0:00:28]} 40. Kg2 {[%clk 0:00:59]}  Qc2+ {[%clk 0:00:25]} 41. Kg1 {[%clk 0:00:58]}  Qc3 {[%clk 0:00:22]} 42. Kf2 {[%clk 0:00:58]}  Qc2+ {[%clk 0:00:18]} 43. Re2 {[%clk 0:00:59]}  Qc7 {[%clk 0:00:18]} 44. Ne5 {[%clk 0:00:59]}  Be8 {[%clk 0:00:14]} 45. Re3 {[%clk 0:00:57]}  Qc2+ {[%clk 0:00:13]} 46. Re2 {[%clk 0:00:51]}  Qc1 {[%clk 0:00:13]} 47. Nd3 {[%clk 0:00:31]}  Qc7 {[%clk 0:00:13]} 48. Rxe6 {[%clk 0:00:28]}  Bb5 {[%clk 0:00:12]} 49. Ne5 {[%clk 0:00:28]}  Qc2+ {[%clk 0:00:11]} 50. Kg3 {[%clk 0:00:29]}  Qc3+ {[%clk 0:00:10]} 51. Kg2 {[%clk 0:00:28]}  Qd2+ {[%clk 0:00:09]} 52. Rf2 {[%clk 0:00:29]}  Qc3 {[%clk 0:00:07]} 53. Ng6 {[%clk 0:00:26]}  Kh7 {[%clk 0:00:06]} 54. Nf8+ {[%clk 0:00:23]}  Kg8 {[%clk 0:00:06]} 55. Ng6 {[%clk 0:00:19]}  Kh7 {[%clk 0:00:07]} 56. Rf8 {[%clk 0:00:19]}  Qd2+ {[%clk 0:00:00]} 57. Kg3 {[%clk 0:00:19]} 1-0